fUST/lending_fUST_20250522
["ID","MTS","AMOUNT","RATE_DAILY","PERIOD"]
[361975085,1747915847407,-422.38731857,0.00023725,2]
[361975086,1747915847417,-500.0,0.00023726,2]
[361975087,1747915847427,-500.82401651,0.00023726,2]
[361975088,1747915847436,-500.0,0.00023726,2]
[361975090,1747915847446,-500.0,0.00023726,2]
[361975092,1747915847456,-500.0,0.00023726,2]
[361975094,1747915847465,-500.0,0.00023726,2]
[361975096,1747915847474,-500.0,0.00023726,2]
[361975098,1747915847484,-500.0,0.00023726,2]
[361975100,1747915847493,-500.0,0.00023726,2]
[361975102,1747915847503,-500.0,0.00023726,2]
[361975103,1747915847513,-500.0,0.00023726,2]
[361975105,1747915847522,-500.0,0.00023726,2]
[361975106,1747915847532,-500.0,0.00023726,2]
[361975107,1747915847542,-500.0,0.00023726,2]
[361975108,1747915847552,-500.0,0.00023726,2]
[361975109,1747915847562,-500.0,0.00023726,2]
[361975110,1747915847571,-500.0,0.00023726,2]
[361975111,1747915847581,-500.0,0.00023726,2]
[361975112,1747915847590,-500.0,0.00023726,2]
[361975113,1747915847600,-500.0,0.00023726,2]
[361975114,1747915847609,-501.34430196,0.00023726,2]
[361975115,1747915847619,-500.0,0.00023726,2]
[361975117,1747915847628,-500.0,0.00023726,2]
[361975118,1747915847637,-500.0,0.00023726,2]
[361975119,1747915847647,-500.0,0.00023726,2]
[361975120,1747915847657,-700.0,0.00023735,2]
[361975121,1747915847666,-200.53985225,0.00023735,2]
[361975122,1747915847676,-207.744,0.00023746,2]
[361975123,1747915847686,-500.0,0.00023748,4]
[361975124,1747915847695,-491.64091141,0.00023752,2]
[361975125,1747915847708,-560.042841,0.00023835,7]
[361975126,1747915847718,-560.042841,0.00023835,7]
[361975127,1747915847728,-151.0,0.00023835,7]
[361975128,1747915847738,-151.0,0.00023835,7]
[361975129,1747915847749,-151.0,0.00023835,7]
[361975130,1747915847758,-151.0,0.00023835,7]
[361975131,1747915847768,-472.09,0.00023835,2]
[361975132,1747915847778,-430.0,0.00023835,2]
[361975133,1747915847787,-810.07,0.00023835,2]
[361975134,1747915847797,-455.93,0.00023835,2]
[361975135,1747915847806,-436.52,0.00023835,2]
[361975136,1747915847816,-939.78,0.00023835,2]
[361975137,1747915847826,-430.0,0.00023835,2]
[361975138,1747915847835,-430.0,0.00023835,2]
[361975139,1747915847846,-430.0,0.00023835,2]
[361975140,1747915847857,-737.63,0.00023835,2]
[361975141,1747915847866,-430.0,0.00023835,2]
[361975142,1747915847876,-447.91,0.00023835,2]
[361975143,1747915847885,-922.89,0.00023835,2]
[361975144,1747915847895,-830.22,0.00023835,2]
[361975145,1747915847905,-430.0,0.00023835,2]
[361975146,1747915847915,-430.0,0.00023835,2]
[361975147,1747915847924,-430.0,0.00023835,2]
[361975148,1747915847934,-1494.02,0.00023835,2]
[361975149,1747915847943,-626.27,0.00023835,2]
[361975150,1747915847954,-1809.13,0.00023835,2]
[361975151,1747915847963,-430.0,0.00023835,2]
[361975152,1747915847973,-669.49,0.00023835,2]
[361975153,1747915847983,-5605.37,0.00023835,2]
[361975154,1747915847993,-430.0,0.00023835,2]
[361975155,1747915848003,-766.38,0.00023835,2]
[361975156,1747915848014,-507.05,0.00023835,2]
[361975157,1747915848024,-430.0,0.00023835,2]
[361975158,1747915848117,-825.22,0.00023835,2]
[361975159,1747915848128,-430.0,0.00023835,2]
[361975160,1747915848142,-430.0,0.00023835,2]
[361975161,1747915848154,-1569.63,0.00023835,2]
[361975162,1747915848164,-468.59,0.00023835,2]
[361975163,1747915848175,-430.0,0.00023835,2]
[361975164,1747915848186,-1469.52,0.00023835,2]
[361975165,1747915848197,-430.0,0.00023835,2]
[361975166,1747915848207,-3826.34,0.00023835,2]
[361975167,1747915848216,-430.0,0.00023835,2]
[361975168,1747915848226,-819.38,0.00023835,2]
[361975169,1747915848236,-430.0,0.00023835,2]
[361975170,1747915848246,-728.8,0.00023835,2]
[361975171,1747915848256,-571.69,0.00023835,2]
[361975172,1747915848266,-430.0,0.00023835,2]
[361975173,1747915848276,-430.0,0.00023835,2]
[361975174,1747915848286,-651.17,0.00023835,2]
[361975175,1747915848296,-697.29,0.00023835,2]
[361975176,1747915848305,-1808.95,0.00023835,2]
[361975177,1747915848315,-430.0,0.00023835,2]
[361975178,1747915848325,-2023.14,0.00023835,2]
[361975179,1747915848334,-465.83,0.00023835,2]
[361975180,1747915848345,-430.0,0.00023835,2]
[361975181,1747915848355,-430.0,0.00023835,2]
[361975182,1747915848364,-663.88,0.00023835,2]
[361975183,1747915848374,-1335.71,0.00023835,2]
[361975184,1747915848384,-647.53,0.00023835,2]
[361975185,1747915848394,-2007.51,0.00023835,2]
[361975186,1747915848403,-681.24,0.00023835,2]
[361975187,1747915848413,-1071.41,0.00023835,2]
[361975188,1747915848423,-151.0,0.00023835,7]
[361975189,1747915848432,-989.79,0.00023835,2]
[361975190,1747915848443,-151.0,0.00023835,7]
[361975191,1747915848452,-202.855957,0.00023835,7]
[361975192,1747915848463,-513.58876216,0.00023835,2]
[361975193,1747915848473,-151.0,0.00023835,7]
[361975194,1747915848483,-650.83,0.00023835,2]
[361975195,1747915848493,-507.59,0.00023835,2]
[361975196,1747915848503,-430.0,0.00023835,2]
[361975197,1747915848513,-430.0,0.00023835,2]
[361975198,1747915848522,-286.129337,0.00023835,7]
[361975199,1747915848531,-1625.15,0.00023835,2]
[361975200,1747915848541,-770.23,0.00023835,2]
[361975201,1747915848551,-898.33,0.00023835,2]
[361975202,1747915848560,-691.05,0.00023835,2]
[361975204,1747915848570,-576.33,0.00023835,2]
[361975206,1747915848579,-765.5,0.00023835,2]
[361975207,1747915848588,-1814.33,0.00023835,2]
[361975209,1747915848598,-4888.16,0.00023835,2]
[361975211,1747915848608,-151.0,0.00023835,7]
[361975213,1747915848617,-940.56,0.00023835,2]
[361975215,1747915848627,-892.67,0.00023835,2]
[361975217,1747915848637,-151.0,0.00023835,7]
[361975219,1747915848647,-2478.21,0.00023835,2]
[361975221,1747915848657,-915.03,0.00023835,2]
[361975224,1747915848667,-430.0,0.00023835,2]
[361975225,1747915848677,-1438.91,0.00023835,2]
[361975227,1747915848686,-583.99,0.00023835,2]
[361975229,1747915848696,-2000.0,0.00023861,2]
[361975231,1747915848707,-151.0,0.00023865,7]
[361975233,1747915848720,-151.0,0.00023865,7]
[361975235,1747915848730,-151.0,0.00023865,7]
[361975237,1747915848739,-159.499659,0.00023865,7]
[361975239,1747915848748,-723.415254,0.00023865,7]
[361975240,1747915848758,-159.499659,0.00023865,7]
[361975242,1747915848767,-723.415254,0.00023865,7]
[361975245,1747915848777,-3766.07339851,0.00023866,10]
[361975247,1747915848787,-152.19365643,0.00023881,2]
[361975249,1747915848799,-500.0,0.00023881,2]
[361975250,1747915848809,-522.46317688,0.00023881,2]
[361975252,1747915848819,-500.0,0.00023881,2]
[361975254,1747915848829,-525.07549888,0.00023881,2]
[361975256,1747915848839,-500.0,0.00023881,2]
[361975258,1747915848849,-438.76396021,0.00023881,2]
[361975260,1747915848859,-600.0,0.00023881,2]
[361975262,1747915848869,-500.0,0.00023881,2]
[361975264,1747915848879,-500.0,0.00023881,2]
[361975266,1747915848889,-500.0,0.00023881,2]
[361975268,1747915848900,-500.0,0.00023881,2]
[361975270,1747915848910,-500.0,0.00023881,2]
[361975272,1747915848921,-200.0,0.000239,3]
[361975274,1747915848931,-300.0,0.000239,2]
[361975276,1747915848941,-6810.30058113,0.000239,2]
[361975278,1747915848950,-594.83569744,0.000239,2]
[361975280,1747915848960,-190.83204774,0.000239,2]
[361975282,1747915848970,-1085.437,0.00023924,2]
[361975284,1747915848980,-707.0,0.00023924,2]
[361975286,1747915848990,-2235.0,0.00023924,2]
[361975288,1747915849000,-151.0,0.00023924,7]
[361975290,1747915849010,-154.697376,0.00023924,7]
[361975292,1747915849020,-185.324262,0.00023924,7]
[361975294,1747915849029,-185.324262,0.00023924,7]
[361975296,1747915849041,-151.0,0.00023924,7]
[361975298,1747915849051,-151.0,0.00023924,7]
[361975300,1747915849062,-343.802139,0.00023924,7]
[361975302,1747915849071,-343.802139,0.00023924,7]
[361975304,1747915849082,-704.00498,0.00023924,7]
[361975306,1747915849093,-151.0,0.00023924,7]
[361975308,1747915849104,-704.00498,0.00023924,7]
[361975310,1747915849114,-151.0,0.00023924,7]
[361975312,1747915849124,-500.0,0.00023938,2]
[361975314,1747915849134,-500.0,0.00023938,2]
[361975317,1747915849145,-500.0,0.00023938,2]
[361975318,1747915849155,-500.0,0.00023938,2]
[361975320,1747915849166,-152.0,0.00023959,3]
[361975322,1747915849177,-258.57859842,0.00023959,3]
[361975325,1747915849187,-422.31577328,0.00023959,3]
[361975327,1747915849198,-321.0,0.00023959,3]
[361975328,1747915849208,-166.0,0.00023959,3]
[361975330,1747915849218,-719.0,0.00023959,3]
[361975333,1747915849228,-166.0,0.00023959,3]
[361975335,1747915849238,-203.06109813,0.00023959,3]
[361975336,1747915849248,-719.0,0.00023959,3]
[361975338,1747915849258,-166.0,0.00023959,3]
[361975340,1747915849268,-719.0,0.00023959,3]
[361975342,1747915849278,-166.0,0.00023959,3]
[361975344,1747915849288,-719.0,0.00023959,3]
[361975346,1747915849299,-166.0,0.00023959,3]
[361975348,1747915849309,-166.0,0.00023959,3]
[361975350,1747915849319,-166.0,0.00023959,3]
[361975352,1747915849329,-719.0,0.00023959,3]
[361975354,1747915849339,-166.0,0.00023959,3]
[361975356,1747915849349,-719.0,0.00023959,3]
[361975358,1747915849359,-172.0,0.00023959,3]
[361975360,1747915849370,-719.0,0.00023959,3]
[361975362,1747915849380,-719.0,0.00023959,3]
[361975364,1747915849391,-719.0,0.00023959,3]
[361975366,1747915849402,-719.0,0.00023959,3]
[361975368,1747915849412,-151.0,0.00023959,3]
[361975370,1747915849423,-719.0,0.00023959,3]
[361975372,1747915849437,-719.0,0.00023959,3]
[361975374,1747915849447,-160.0,0.00023959,3]
[361975385,1747915849538,-151.0,0.00023959,3]
[361975387,1747915849558,-719.0,0.00023959,3]
[361975389,1747915849568,-160.0,0.00023959,3]
[361975391,1747915849578,-166.0,0.00023959,3]
[361975393,1747915849588,-151.0,0.00023959,3]
[361975395,1747915849598,-719.0,0.00023959,3]
[361975397,1747915849608,-160.0,0.00023959,3]
[361975399,1747915849617,-151.0,0.00023959,3]
[361975401,1747915849627,-166.0,0.00023959,3]
[361975403,1747915849637,-719.0,0.00023959,3]
[361975405,1747915849646,-160.0,0.00023959,3]
[361975407,1747915849656,-151.0,0.00023959,3]
[361975409,1747915849666,-166.0,0.00023959,3]
[361975411,1747915849675,-160.0,0.00023959,3]
[361975413,1747915849685,-151.0,0.00023959,3]
[361975415,1747915849695,-166.0,0.00023959,3]
[361975417,1747915849709,-719.0,0.00023959,3]
[361975419,1747915849718,-160.0,0.00023959,3]
[361975421,1747915849728,-151.0,0.00023959,3]
[361975423,1747915849738,-719.0,0.00023959,3]
[361975425,1747915849748,-166.0,0.00023959,3]
[361975427,1747915849758,-160.0,0.00023959,3]
[361975429,1747915849767,-151.0,0.00023959,3]
[361975431,1747915849777,-719.0,0.00023959,3]
[361975433,1747915849788,-166.0,0.00023959,3]
[361975435,1747915849800,-160.0,0.00023959,3]
[361975437,1747915849809,-719.0,0.00023959,3]
[361975439,1747915849819,-166.0,0.00023959,3]
[361975441,1747915849828,-151.0,0.00023959,3]
[361975443,1747915849838,-160.0,0.00023959,3]
[361975445,1747915849847,-719.0,0.00023959,3]
[361975447,1747915849858,-151.0,0.00023959,3]
[361975449,1747915849867,-166.0,0.00023959,3]
[361975451,1747915849877,-163.92424099,0.00023959,3]
[361975453,1747915849887,-719.0,0.00023959,3]
[361975455,1747915849896,-151.0,0.00023959,3]
[361975457,1747915849907,-172.0,0.00023959,3]
[361975459,1747915849917,-719.0,0.00023959,3]
[361975461,1747915849926,-151.0,0.00023959,3]
[361975463,1747915849936,-719.0,0.00023959,3]
[361975465,1747915849945,-151.0,0.00023959,3]
[361975467,1747915849955,-151.0,0.00023959,3]
[361975469,1747915849966,-719.0,0.00023959,3]
[361975471,1747915849976,-151.0,0.00023959,3]
[361975473,1747915849985,-719.0,0.00023959,3]
[361975475,1747915849994,-151.0,0.00023959,3]
[361975477,1747915850004,-719.0,0.00023959,3]
[361975479,1747915850014,-200.04589674,0.00023959,3]
[361975481,1747915850026,-719.0,0.00023959,3]
[361975484,1747915850036,-719.0,0.00023959,3]
[361975485,1747915850047,-151.0,0.00023959,3]
[361975488,1747915850056,-719.0,0.00023959,3]
[361975490,1747915850066,-151.0,0.00023959,3]
[361975492,1747915850076,-719.0,0.00023959,3]
[361975494,1747915850085,-151.0,0.00023959,3]
[361975495,1747915850095,-151.0,0.00023959,3]
[361975497,1747915850105,-151.0,0.00023959,3]
[361975499,1747915850114,-719.0,0.00023959,3]
[361975501,1747915850124,-151.0,0.00023959,3]
[361975503,1747915850134,-719.0,0.00023959,3]
[361975506,1747915850144,-151.0,0.00023959,3]
[361975508,1747915850154,-719.0,0.00023959,3]
[361975509,1747915850164,-151.0,0.00023959,3]
[361975511,1747915850173,-719.0,0.00023959,3]
[361975513,1747915850183,-151.0,0.00023959,3]
[361975516,1747915850193,-719.0,0.00023959,3]
[361975517,1747915850202,-151.0,0.00023959,3]
[361975519,1747915850212,-719.0,0.00023959,3]
[361975521,1747915850222,-151.0,0.00023959,3]
[361975523,1747915850231,-719.0,0.00023959,3]
[361975524,1747915850241,-218.07859057,0.00023959,3]
[361975525,1747915850250,-719.0,0.00023959,3]
[361975526,1747915850260,-719.0,0.00023959,3]
[361975527,1747915850269,-719.0,0.00023959,3]
[361975528,1747915850279,-719.0,0.00023959,3]
[361975529,1747915850288,-719.0,0.00023959,3]
[361975530,1747915850299,-719.0,0.00023959,3]
[361975531,1747915850308,-315.0,0.00023959,3]
[361975532,1747915850318,-566.14701662,0.00023959,3]
[361975533,1747915850328,-315.0,0.00023959,3]
[361975534,1747915850337,-315.0,0.00023959,3]
[361975535,1747915850347,-315.0,0.00023959,3]
[361975536,1747915850357,-315.0,0.00023959,3]
[361975537,1747915850366,-315.0,0.00023959,3]
[361975538,1747915850376,-315.0,0.00023959,3]
[361975539,1747915850386,-315.0,0.00023959,3]
[361975540,1747915850396,-315.0,0.00023959,3]
[361975541,1747915850406,-315.0,0.00023959,3]
[361975542,1747915850419,-315.0,0.00023959,3]
[361975543,1747915850428,-315.0,0.00023959,3]
[361975544,1747915850439,-315.0,0.00023959,3]
[361975545,1747915850449,-315.0,0.00023959,3]
[361975546,1747915850459,-315.0,0.00023959,3]
[361975547,1747915850468,-315.0,0.00023959,3]
[361975548,1747915850478,-315.0,0.00023959,3]
[361975549,1747915850488,-315.0,0.00023959,3]
[361975550,1747915850498,-315.0,0.00023959,3]
[361975551,1747915850507,-315.0,0.00023959,3]
[361975552,1747915850517,-315.0,0.00023959,3]
[361975553,1747915850527,-315.0,0.00023959,3]
[361975554,1747915850537,-315.0,0.00023959,3]
[361975555,1747915850548,-315.0,0.00023959,3]
[361975556,1747915850559,-315.0,0.00023959,3]
[361975557,1747915850569,-315.0,0.00023959,3]
[361975558,1747915850579,-315.0,0.00023959,3]
[361975559,1747915850588,-315.0,0.00023959,3]
[361975560,1747915850599,-315.0,0.00023959,3]
[361975561,1747915850609,-315.0,0.00023959,3]
[361975562,1747915850620,-315.0,0.00023959,3]
[361975563,1747915850629,-315.0,0.00023959,3]
[361975564,1747915850638,-315.0,0.00023959,3]
[361975566,1747915850648,-315.0,0.00023959,3]
[361975568,1747915850658,-315.0,0.00023959,3]
[361975570,1747915850667,-315.0,0.00023959,3]
[361975572,1747915850676,-315.0,0.00023959,3]
[361975574,1747915850685,-315.0,0.00023959,3]
[361975576,1747915850694,-315.0,0.00023959,3]
[361975578,1747915850704,-315.0,0.00023959,3]
[361975580,1747915850715,-315.0,0.00023959,3]
[361975582,1747915850726,-315.0,0.00023959,3]
[361975584,1747915850736,-315.0,0.00023959,3]
[361975586,1747915850745,-315.0,0.00023959,3]
[361975596,1747915850755,-315.0,0.00023959,3]
[361975599,1747915850852,-315.0,0.00023959,3]
[361975601,1747915850862,-315.0,0.00023959,3]
[361975603,1747915850872,-315.0,0.00023959,3]
[361975604,1747915850882,-315.0,0.00023959,3]
[361975607,1747915850893,-315.0,0.00023959,3]
[361975609,1747915850903,-315.0,0.00023959,3]
[361975611,1747915850913,-315.0,0.00023959,3]
[361975613,1747915850923,-315.0,0.00023959,3]
[361975615,1747915850933,-315.0,0.00023959,3]
[361975616,1747915850942,-315.0,0.00023959,3]
[361975619,1747915850952,-315.0,0.00023959,3]
[361975621,1747915850962,-315.0,0.00023959,3]
[361975623,1747915850972,-315.0,0.00023959,3]
[361975624,1747915850981,-315.0,0.00023959,3]
[361975626,1747915850990,-315.0,0.00023959,3]
[361975628,1747915851000,-315.0,0.00023959,3]
[361975630,1747915851010,-315.0,0.00023959,3]
[361975632,1747915851022,-315.0,0.00023959,3]
[361975635,1747915851032,-315.0,0.00023959,3]
[361975637,1747915851042,-315.0,0.00023959,3]
[361975639,1747915851052,-315.0,0.00023959,3]
[361975641,1747915851062,-315.0,0.00023959,3]
[361975643,1747915851072,-315.0,0.00023959,3]
[361975645,1747915851081,-315.0,0.00023959,3]
[361975646,1747915851091,-315.0,0.00023959,3]
[361975648,1747915851112,-315.0,0.00023959,3]
[361975650,1747915851135,-315.0,0.00023959,3]
[361975653,1747915851147,-315.0,0.00023959,3]
[361975655,1747915851159,-315.0,0.00023959,3]
[361975657,1747915851170,-315.0,0.00023959,3]
[361975659,1747915851182,-315.0,0.00023959,3]
[361975661,1747915851193,-315.0,0.00023959,3]
[361975663,1747915851204,-315.0,0.00023959,3]
[361975665,1747915851214,-315.0,0.00023959,3]
[361975667,1747915851227,-315.0,0.00023959,3]
[361975669,1747915851236,-315.0,0.00023959,3]
[361975671,1747915851246,-315.0,0.00023959,3]
[361975673,1747915851256,-315.0,0.00023959,3]
[361975675,1747915851266,-315.0,0.00023959,3]
[361975677,1747915851276,-315.0,0.00023959,3]
[361975679,1747915851286,-315.0,0.00023959,3]
[361975681,1747915851297,-315.0,0.00023959,3]
[361975683,1747915851312,-315.0,0.00023959,3]
[361975686,1747915851323,-176.58861794,0.00023959,3]
[361975687,1747915851336,-168.0,0.00023959,3]
[361975690,1747915851346,-168.0,0.00023959,3]
[361975691,1747915851356,-168.0,0.00023959,3]
[361975694,1747915851366,-168.0,0.00023959,3]
[361975695,1747915851376,-168.0,0.00023959,3]
[361975697,1747915851386,-168.0,0.00023959,3]
[361975700,1747915851395,-168.0,0.00023959,3]
[361975702,1747915851406,-170.54135096,0.00023959,3]
[361975704,1747915851416,-266.147776,0.00023959,7]
[361975706,1747915851426,-266.147776,0.00023959,7]
[361975708,1747915851436,-151.0,0.00023959,7]
[361975709,1747915851445,-181.168342,0.00023959,7]
[361975712,1747915851455,-181.168342,0.00023959,7]
[361975713,1747915851464,-340.897302,0.00023959,7]
[361975715,1747915851473,-167.356464,0.00023959,7]
[361975717,1747915851484,-340.897302,0.00023959,7]
[361975719,1747915851494,-167.356464,0.00023959,7]
[361975721,1747915851504,-1183.036115,0.00023959,2]
[361975723,1747915851515,-1183.036115,0.00023959,2]
[361975726,1747915851524,-151.0,0.00023959,7]
[361975727,1747915851534,-151.0,0.00023959,7]
[361975729,1747915851545,-151.0,0.00023959,7]
[361975732,1747915851556,-151.0,0.00023959,7]
[361975734,1747915851566,-454.337035,0.00023959,7]
[361975736,1747915851576,-454.337035,0.00023959,7]
[361975738,1747915851585,-151.0,0.00023959,2]
[361975740,1747915851595,-151.0,0.00023959,2]
[361975742,1747915851604,-422.78357425,0.0002396,3]
[361975744,1747915851614,-398.54838117,0.00023973,2]
[361975746,1747915851623,-500.0,0.00023973,2]
[361975748,1747915851631,-17671.50729585,0.00024,2]
[361975750,1747915851641,-7112.75885983,0.00024,3]
[361975752,1747915851651,-508514.74989445,0.00024,30]
[361975759,1747915851720,-160.0,0.000204,3]
[361975761,1747915851730,-430.0,0.00021917,2]
[361975763,1747915851740,-9795.80341147,0.00024,30]
[361975765,1747915851753,-2030.05354518,0.00024,30]
[361975811,1747915852185,-3813.35429605,0.00020196,2]
[361976237,1747916282699,188.698329,0.00013699,2]
[361976240,1747916427791,-3610.0,0.00018061,2]
[361976253,1747916887227,-300.0,0.00017999,2]
[361976254,1747916887252,-7013.0,0.00018,2]
[361976258,1747916922937,3276.18696416,0.00015,2]
[361976330,1747917032541,-3968.74758631,0.00017818,2]
[361976331,1747917032551,-300.0,0.00017998,2]
[361976333,1747917032562,-1200.0,0.00017998,2]
[361976335,1747917032573,-500.0,0.00017999,2]
[361976337,1747917032582,-500.0,0.00017999,2]
[361976339,1747917032592,-500.0,0.00017999,2]
[361976341,1747917032602,-500.0,0.00017999,2]
[361976344,1747917032613,-500.0,0.00017999,2]
[361976346,1747917032623,-500.0,0.00017999,2]
[361976348,1747917032633,-500.0,0.00017999,2]
[361976350,1747917032643,-500.0,0.00017999,2]
[361976352,1747917032653,-181.23584675,0.00017999,2]
[361976353,1747917032664,-500.0,0.00017999,2]
[361976354,1747917032673,-500.0,0.00017999,2]
[361976355,1747917032683,-500.0,0.00017999,2]
[361976356,1747917032693,-500.0,0.00017999,2]
[361976357,1747917032703,-500.0,0.00017999,2]
[361976358,1747917032714,-491.55498854,0.00017999,2]
[361976359,1747917032723,-500.0,0.00017999,2]
[361976360,1747917032733,-500.0,0.00017999,2]
[361976361,1747917032743,-500.0,0.00017999,2]
[361976362,1747917032753,-500.0,0.00017999,2]
[361976363,1747917032763,-500.0,0.00017999,2]
[361976364,1747917032773,-194.31691311,0.00017999,2]
[361976365,1747917032784,-500.0,0.00017999,2]
[361976366,1747917032794,-500.0,0.00017999,2]
[361976367,1747917032804,-500.0,0.00017999,2]
[361976368,1747917032814,-500.0,0.00017999,2]
[361976369,1747917032824,-500.0,0.00017999,2]
[361976370,1747917032834,-500.0,0.00017999,2]
[361976371,1747917032843,-278.81327702,0.00017999,2]
[361976372,1747917032854,-500.0,0.00017999,2]
[361976373,1747917032865,-500.0,0.00017999,2]
[361976374,1747917032874,-500.0,0.00017999,2]
[361976375,1747917032884,-500.0,0.00017999,2]
[361976376,1747917032893,-500.0,0.00017999,2]
[361976377,1747917033101,-500.0,0.00017999,2]
[361976378,1747917033119,-500.0,0.00017999,2]
[361976379,1747917033130,-500.0,0.00017999,2]
[361976380,1747917033139,-500.0,0.00017999,2]
[361976381,1747917033149,-500.0,0.00017999,2]
[361976382,1747917033161,-500.0,0.00017999,2]
[361976383,1747917033170,-500.0,0.00017999,2]
[361976384,1747917033180,-299.28984615,0.00017999,2]
[361976385,1747917033189,-500.0,0.00017999,2]
[361976386,1747917033198,-500.0,0.00017999,2]
[361976387,1747917033208,-448.67405918,0.00017999,2]
[361976388,1747917033217,-500.0,0.00017999,2]
[361976389,1747917033227,-500.0,0.00017999,2]
[361976390,1747917033236,-500.0,0.00017999,2]
[361976391,1747917033246,-500.0,0.00017999,2]
[361976392,1747917033256,-500.0,0.00017999,2]
[361976393,1747917033266,-500.0,0.00017999,2]
[361976394,1747917033276,-500.0,0.00017999,2]
[361976395,1747917033286,-391.01271545,0.00017999,2]
[361976396,1747917033296,-500.0,0.00017999,2]
[361976397,1747917033305,-500.0,0.00017999,2]
[361976398,1747917033315,-500.0,0.00017999,2]
[361976399,1747917033324,-499.99999999,0.00017999,2]
[361976400,1747917033334,-500.0,0.00017999,2]
[361976401,1747917033343,-500.0,0.00017999,2]
[361976402,1747917033353,-500.0,0.00017999,2]
[361976403,1747917033363,-444.50558725,0.00017999,2]
[361976404,1747917033372,-500.0,0.00017999,2]
[361976405,1747917033382,-500.0,0.00017999,2]
[361976406,1747917033392,-110958.85289471,0.00018,2]
[361976407,1747917033402,-25927.39052781,0.00018,2]
[361976408,1747917033412,-300.0,0.00018427,2]
[361976409,1747917033422,-681.5058629,0.00018428,2]
[361976410,1747917033433,-10000.0,0.00018428,2]
[361976411,1747917033443,-491.5002686,0.00018428,2]
[361976412,1747917033454,-599.930007,0.00018428,2]
[361976413,1747917033464,-396.55713163,0.000189,2]
[361976414,1747917033473,-10000.00000001,0.00018908,7]
[361976415,1747917033483,-164.476756,0.00018945,2]
[361976416,1747917033497,-13251.46699956,0.00019,2]
[361976417,1747917033506,-172.37047397,0.00019,2]
[361976418,1747917033516,-546.07682691,0.00019177,4]
[361976419,1747917033526,-173.825313,0.00019178,2]
[361976420,1747917033536,-164.38006188,0.00019186,2]
[361976421,1747917033546,-420.0,0.00019638,2]
[361976422,1747917033556,-963.0,0.00019734,2]
[361976423,1747917033567,-837.09835211,0.0002,30]
[361976424,1747917033576,-217512.36943139,0.0002,2]
[361976438,1747917038372,-300.0,0.00017998,2]
[361976439,1747917038382,-500.0,0.00017999,2]
[361976440,1747917038391,-58.14095,0.00017999,2]
[361976441,1747917038403,-441.85905,0.00017999,2]
[361976442,1747917038413,-500.0,0.00017999,2]
[361976443,1747917038423,-500.0,0.00017999,2]
[361976444,1747917038432,-500.0,0.00017999,2]
[361976445,1747917038442,-500.0,0.00017999,2]
[361976446,1747917038452,-500.0,0.00017999,2]
[361976447,1747917038462,-500.0,0.00017999,2]